bitfinex/quotes_ETHUSD_20240729
["timestamp","ask_amount","ask_price","bid_price","bid_amount"]
[1722220530207,5.95617,3326.2,3325.2,2.64775359]
[1722220530548,3.551,3326.2,3325.2,2.64775359]
[1722220530747,2.40502,3326.4,3325.2,2.64775359]
[1722220530955,2.40502,3326.4,3325.5,2.40565]
[1722220531256,2.40502,3326.4,3325.4,2.40571]
[1722220531257,0.55,3326.3,3325.4,2.40571]
[1722220531608,2.95508,3326.3,3325.3,0.50066536]
[1722220531945,2.40519,3326.2,3325.3,0.50066536]
[1722220532256,2.40522,3326.1,3325.3,0.50066536]
[1722220532410,0.55,3326.3,3324.9,5.69740482]
[1722220532411,0.55,3326.0,3324.9,5.69740482]
[1722220532610,2.40544,3325.8,3324.8,5.4061]
[1722220532813,2.40532,3326.0,3324.9,2.40608]
[1722220533173,0.55,3325.9,3325.0,2.40601]
[1722220533454,2.95539,3325.9,3325.1,0.240601]
[1722220533663,0.55,3325.8,3324.7,3.0]
[1722220533827,0.55,3325.8,3324.8,2.40612]
[1722220534023,0.55,3325.8,3324.8,5.40612]
[1722220534024,2.95544,3325.8,3324.8,5.40612]
[1722220534427,2.95544,3325.8,3324.9,2.40608]
[1722220534621,0.55,3325.8,3325.1,2.40594]
[1722220534806,0.55,3326.1,3324.9,2.40608]
[1722220535007,2.40536,3325.9,3324.9,2.40608]
[1722220535211,2.40545,3325.8,3325.0,0.540608]
[1722220535409,2.4053,3326.0,3324.8,3.0]
[1722220535641,2.4053,3326.0,3324.3,5.69740482]
[1722220535642,3.551,3325.7,3324.3,8.10391482]
[1722220535840,3.551,3325.7,3324.4,2.40644]
[1722220536046,0.55,3325.6,3324.7,2.40621]
[1722220536254,0.55,3325.6,3324.8,0.240621]
[1722220536458,2.40543,3325.8,3324.8,0.240621]
[1722220536679,2.40566,3325.5,3324.5,2.40636]
[1722220536831,2.40573,3325.4,3324.5,2.40636]
[1722220537232,2.40573,3325.4,3324.4,3.0]
[1722220537233,2.40587,3325.2,3324.4,3.0]
[1722220537456,2.40573,3325.4,3324.5,0.86974048]
[1722220537457,0.55,3325.3,3324.5,0.86974048]
[1722220538061,2.40588,3325.2,3324.5,0.86974048]
[1722220538492,2.40613,3324.9,3323.9,2.4068]
[1722220538791,2.40617,3324.8,3323.9,0.05626578]
[1722220539292,5.95773,3324.0,3323.9,0.05626578]
[1722220539492,2.40683,3323.9,3322.7,3.613816]
[1722220539806,0.55,3323.9,3322.8,0.0511106]
[1722220540105,2.40712,3323.5,3322.8,0.0511106]
[1722220540411,0.55,3324.0,3322.3,3.43976263]
[1722220540412,3.551,3323.1,3322.3,3.43976263]
[1722220540687,3.551,3323.1,3322.2,2.40802]
[1722220540894,3.551,3323.1,3322.3,2.454149]
[1722220541048,3.551,3323.1,3322.3,0.046209]
[1722220541244,3.551,3323.1,3322.1,2.4853]
[1722220541451,0.55,3323.0,3322.2,0.86460482]
[1722220541645,2.40756,3322.9,3322.2,0.86460482]
[1722220541949,2.40754,3322.9,3322.2,0.86460482]
[1722220542267,0.55,3323.0,3322.3,2.40796]
[1722220542475,5.95804,3323.6,3322.4,0.04608367]
[1722220542779,0.55,3323.5,3322.4,2.40788]
[1722220542982,0.55,3323.5,3322.5,0.240788]
[1722220543188,2.40718,3323.4,3322.5,0.28674635]
[1722220543360,2.40718,3323.4,3322.5,0.04595835]
[1722220543562,2.9571,3323.5,3322.5,0.04595835]
[1722220543799,2.40703,3323.6,3322.6,2.40773]
[1722220544101,2.95712,3323.5,3322.6,0.04583303]
[1722220544245,0.55,3323.5,3322.5,2.40781]
[1722220544596,2.95692,3323.8,3322.8,2.4076]
[1722220544803,0.55,3323.8,3322.6,0.28661403]
[1722220545104,3.551,3324.1,3322.9,0.04545713]
[1722220545105,5.95803,3323.6,3322.9,0.04545713]
[1722220545313,2.40737,3323.2,3323.0,0.04533184]
[1722220545599,2.40737,3323.2,3322.2,3.22629048]
[1722220545600,4.101,3323.1,3322.2,0.81827048]
[1722220545811,4.101,3323.1,3321.7,2.4084]
[1722220545812,2.40768,3322.7,3321.7,2.4084]
[1722220545953,3.551,3322.6,3321.5,8.10594482]
[1722220546147,2.4081,3322.2,3321.8,0.04715714]
[1722220546404,2.4081,3322.2,3321.1,5.89686263]
[1722220546405,2.4079,3322.4,3321.6,0.04741378]
[1722220546543,0.55,3322.3,3321.9,0.04703765]
[1722220546743,0.55,3322.3,3321.5,2.40854]
[1722220546947,0.55,3322.4,3322.0,0.04691229]
[1722220547181,2.40817,3322.1,3321.4,0.240868]
[1722220547359,5.95917,3322.1,3320.9,5.69740482]
[1722220547672,2.9582,3322.0,3320.9,5.69740482]
[1722220548150,0.55,3322.0,3321.0,0.04816624]
[1722220548462,2.40826,3321.9,3321.1,0.57455711]
[1722220548791,0.55,3322.0,3321.2,0.04791539]
[1722220549092,2.95818,3322.0,3321.2,0.04791539]
[1722220549292,2.40826,3321.9,3321.2,0.04791539]
[1722220549520,0.55,3322.0,3320.6,2.40919]
[1722220549521,2.40848,3321.6,3320.6,2.40919]
[1722220549647,2.40844,3321.7,3321.3,0.04871896]
[1722220549852,0.55,3321.8,3320.9,2.40897]
[1722220550181,0.55,3321.8,3321.1,2.40878]
[1722220550397,0.55,3322.0,3321.0,0.04912073]
[1722220550739,2.40755,3322.9,3321.9,2.4082]
[1722220550916,2.40701,3323.7,3321.3,2.2644]
[1722220550917,2.40712,3323.5,3322.0,0.24082]
[1722220551197,2.2801,3323.7,3322.1,0.047712]
[1722220551361,2.2801,3323.7,3322.9,2.40747]
[1722220551577,5.95789,3323.8,3323.1,2.40738]
[1722220551578,3.551,3323.8,3323.1,2.40738]
[1722220551773,8.23762,3324.3,3323.4,2.40716]
[1722220551987,8.23762,3324.3,3323.5,0.240716]
[1722220552293,8.23762,3324.3,3323.5,0.04578526]
[1722220552494,5.8311,3324.3,3323.5,0.04578526]
[1722220552697,5.8311,3324.3,3323.6,0.04565413]
[1722220553006,3.551,3324.3,3323.4,2.40716]
[1722220553152,3.551,3324.3,3323.7,0.04539756]
[1722220553403,3.551,3324.3,3323.5,0.240716]
[1722220553664,2.40667,3324.1,3323.8,0.04527234]
[1722220553944,5.95753,3324.3,3322.8,5.69740482]
[1722220553945,2.40708,3323.6,3322.8,5.69740482]
[1722220554148,0.55,3323.5,3322.8,0.81051548]
[1722220554357,0.55,3323.5,3322.9,0.04639964]
[1722220554950,0.55,3323.5,3323.0,0.04627435]
[1722220555157,5.95791,3323.8,3323.0,0.04627435]
[1722220555158,0.55,3323.7,3323.0,0.04627435]
[1722220555512,2.95696,3323.7,3322.7,2.40765]
[1722220555738,2.95696,3323.7,3322.8,2.93565393]
[1722220556046,0.55,3323.7,3322.8,0.52806393]
[1722220556411,2.40718,3323.4,3322.8,0.52806393]
[1722220556724,0.55,3323.3,3322.8,0.04652493]
[1722220557046,0.55,3323.3,3322.4,2.40786]
[1722220557232,2.40711,3323.5,3322.9,0.04644864]
[1722220557428,0.55,3323.4,3322.5,2.40778]
[1722220557632,0.55,3323.4,3322.6,0.481564]
[1722220557827,2.95717,3323.4,3322.6,0.04682454]
[1722220558032,2.40725,3323.3,3322.6,0.04682454]
[1722220558236,2.40725,3323.3,3322.3,2.40793]
[1722220558237,2.40725,3323.3,3322.4,2.40789]
[1722220558462,0.55,3323.2,3322.7,0.04669923]
[1722220558672,0.55,3323.2,3322.6,2.40773]
[1722220558821,0.55,3323.4,3322.8,0.04657393]
[1722220559022,0.55,3323.6,3322.7,0.04669923]
[1722220559366,2.40704,3323.6,3322.8,0.04657393]
[1722220559520,0.55,3323.5,3322.8,0.04657393]
[1722220559937,0.55,3323.5,3322.8,0.29199832]
[1722220560438,5.9385,3323.8,3322.8,0.29199832]
[1722220560439,0.55,3323.6,3322.8,0.29199832]
[1722220560645,5.9226,3324.4,3323.5,2.40705]
[1722220561176,2.4316,3325.5,3324.1,4.81332]
[1722220561340,1e-08,3324.2,3324.1,4.81332]
[1722220561668,1e-08,3324.2,3324.1,0.04465938]
[1722220562019,1e-08,3324.2,3323.0,3.0]
[1722220562281,1e-08,3324.2,3324.1,0.04445951]
[1722220562568,1e-08,3324.2,3323.5,2.40709]
[1722220562774,1e-08,3324.2,3323.6,0.240709]
[1722220562921,1e-08,3324.2,3323.7,2.4069]
[1722220563126,1e-08,3324.2,3323.8,0.04483514]
[1722220563327,1e-08,3324.2,3323.7,2.4069]
[1722220563583,2.40673,3324.0,3323.9,0.04470992]
[1722220563876,0.55,3324.0,3323.8,0.05043954]
[1722220564056,1e-08,3324.2,3323.2,3.0]
[1722220564223,1e-08,3324.2,3323.9,2.45150992]
[1722220564423,1e-08,3324.2,3323.9,2.4068]
[1722220564624,1e-08,3324.2,3324.0,0.04468267]
[1722220564823,1e-08,3324.2,3324.1,4.81332]
[1722220565263,1e-08,3324.2,3324.1,4.86339205]
[1722220565559,1e-08,3324.2,3324.1,5.34973126]
[1722220566012,1e-08,3324.2,3324.1,10.75639126]
[1722220566152,2.4613,3325.8,3325.2,2.40585]
[1722220566353,5.95609,3326.3,3325.3,2.40573]
[1722220566354,0.31502402,3325.9,3325.3,2.40573]
[1722220566552,2.40544,3325.8,3324.4,8.10383482]
[1722220566783,2.40558,3325.6,3324.7,2.40621]
[1722220567052,3.551,3325.8,3324.5,3.0]
[1722220567257,2.4057,3325.5,3324.5,6.56057712]
[1722220567501,0.3866024,3325.7,3324.5,6.56057712]
[1722220567502,2.40593,3325.2,3324.5,1.15420712]
[1722220567667,2.40596,3325.1,3324.5,0.04382364]
[1722220568053,0.55,3325.0,3324.2,5.40658]
[1722220568424,0.55,3325.0,3324.3,0.63337766]
[1722220569076,2.95603,3325.0,3324.3,0.63337766]
[1722220569402,0.55,3325.0,3324.3,0.04408574]
[1722220569575,2.40588,3325.2,3324.3,0.04408574]
[1722220569576,0.55,3325.1,3324.3,0.04408574]
[1722220569774,0.55,3325.1,3324.1,2.89298921]
[1722220569984,0.55,3325.1,3324.4,0.04401148]
[1722220570160,2.95596,3325.1,3324.2,2.40654]
[1722220570365,2.40616,3324.8,3324.5,0.04388631]
[1722220570614,2.40616,3324.8,3323.7,8.69740482]
[1722220570615,0.55,3324.7,3323.7,8.10435482]
[1722220570824,0.55,3325.1,3323.8,0.81043548]
[1722220570825,2.4063,3324.6,3323.8,0.81043548]
[1722220570959,3.0,3325.2,3323.3,2.7072]
[1722220570960,2.40652,3324.3,3323.3,2.7072]
[1722220571165,0.55,3324.2,3323.4,2.40716]
[1722220571563,2.40674,3324.0,3323.3,0.3]
[1722220571774,2.40674,3324.0,3323.0,2.40745]
[1722220571775,2.40681,3323.9,3323.0,2.40745]
[1722220572028,2.95692,3323.8,3322.8,2.40759]
[1722220572386,2.40698,3323.7,3322.8,2.40759]
[1722220572582,0.55,3323.6,3322.8,2.40759]
[1722220572783,0.55,3323.6,3322.9,1.82673526]
[1722220573292,0.55,3323.6,3322.5,5.69740482]
[1722220573293,2.40722,3323.4,3322.5,5.69740482]
[1722220573464,0.55,3323.6,3322.0,2.40813]
[1722220573465,2.40724,3323.3,3322.0,2.40813]
[1722220573808,0.55,3323.6,3322.0,2.40813]
[1722220573809,2.40751,3323.0,3322.0,2.40813]
[1722220574104,2.95754,3322.9,3321.8,5.69740482]
[1722220574269,2.40748,3323.0,3321.2,5.69740482]
[1722220574469,0.55,3322.9,3322.2,2.40803]
[1722220574693,2.40768,3322.7,3321.2,5.69740482]
[1722220574900,2.95754,3322.9,3321.9,2.40824]
[1722220574901,2.40754,3322.9,3321.9,2.40824]
[1722220575210,0.55,3322.8,3322.1,2.40811]
[1722220575410,2.40769,3322.7,3321.7,2.40839]
[1722220575566,2.40769,3322.7,3322.2,0.04457252]
[1722220575567,0.55,3322.6,3322.2,0.04457252]
[1722220575927,0.55,3322.6,3321.8,2.649159]
[1722220575928,0.55,3322.6,3322.1,2.40805]
[1722220576105,0.55,3322.9,3322.2,0.04457252]
[1722220576430,0.55,3323.0,3321.8,0.240839]
[1722220576589,0.55,3323.0,3322.3,0.04444718]
[1722220576787,0.55,3323.0,3322.1,2.4081]
[1722220577103,2.40753,3322.9,3322.2,0.04457252]
[1722220577307,0.55,3323.0,3322.2,0.04457252]
[1722220577308,2.95761,3322.8,3322.2,0.04457252]
[1722220577521,2.95761,3322.8,3321.7,2.40839]
[1722220577522,2.703461,3322.7,3321.7,2.40839]
[1722220577667,2.703461,3322.7,3321.5,5.40853]
[1722220577668,0.55,3322.7,3321.8,0.04517164]
[1722220577870,0.55,3323.0,3322.1,2.4081]
[1722220578067,0.55,3323.0,3322.3,2.40796]
[1722220578267,0.55,3323.0,3322.4,0.04439609]
[1722220578492,5.40716,3323.5,3321.5,2.40853]
[1722220578747,2.40725,3323.3,3321.6,0.35211793]
[1722220578906,2.40716,3323.5,3322.4,2.40784]
[1722220579107,2.2632,3323.6,3322.1,2.40809]
[1722220579331,2.2632,3323.6,3322.2,2.45267676]
[1722220579332,2.40739,3323.1,3322.2,2.45267676]
[1722220579948,2.40753,3323.0,3322.2,0.04464676]
[1722220580114,2.2632,3323.6,3322.2,0.04464676]
[1722220580115,0.467018,3323.5,3322.2,0.04464676]
[1722220580310,2.40744,3323.1,3322.2,0.04464676]
[1722220580543,0.55,3323.0,3322.2,0.04464676]
[1722220581115,2.40768,3322.7,3321.7,2.40839]
[1722220581321,2.40768,3322.7,3321.8,2.45341911]
[1722220581522,0.55,3322.6,3321.8,2.72284632]
[1722220581963,0.55,3322.6,3321.8,0.04510911]
[1722220582124,2.40798,3322.3,3321.8,0.04510911]
[1722220582323,0.55,3322.2,3321.3,4.03677248]
[1722220582508,0.55,3322.2,3321.4,0.04561066]
[1722220582705,2.95791,3322.4,3321.5,2.40854]
[1722220583026,2.95791,3322.4,3321.6,0.04535987]
[1722220583229,0.55,3322.4,3321.6,2.45376987]
[1722220583626,2.95789,3322.4,3321.6,0.04535987]
[1722220584360,3.734644,3322.4,3321.6,0.04535987]
[1722220584533,2.95789,3322.4,3321.6,0.04535987]
[1722220585061,2.40798,3322.3,3321.4,2.40861]
[1722220585421,0.55,3322.2,3321.4,2.40861]
[1722220586247,0.55,3322.2,3321.8,2.40826]
[1722220586562,0.55,3322.5,3321.9,2.40823]
[1722220586720,1.085958,3322.5,3321.9,2.40823]
[1722220586921,0.3152638,3322.9,3322.1,2.4081]
[1722220587121,0.3152638,3322.9,3322.8,9.6304]
[1722220587372,2.40601,3325.0,3323.9,2.40676]
[1722220587525,2.40609,3324.9,3323.9,2.40676]
[1722220587723,0.240609,3324.8,3323.9,2.40676]
[1722220587961,0.240609,3324.8,3324.4,2.40643]
[1722220588266,2.4058,3325.3,3324.4,2.40643]
[1722220588675,4.80336,3325.5,3324.4,2.40643]
[1722220588833,2.3977,3325.5,3324.7,2.40623]
[1722220589034,2.3977,3325.5,3324.6,2.40628]
[1722220589258,0.480333,3325.4,3324.0,2.40669]
[1722220589470,2.3977,3325.5,3324.6,2.40629]
[1722220589788,2.3977,3325.5,3324.7,2.40622]
[1722220589925,5.3977,3325.5,3324.6,2.40629]
[1722220590131,2.3977,3325.5,3324.8,2.40614]
[1722220590324,0.53977,3325.4,3324.7,2.40619]
[1722220590589,2.3977,3325.5,3324.8,2.40608]
[1722220590734,2.3977,3325.5,3324.9,2.40603]
[1722220590953,2.3977,3325.5,3324.7,2.40622]
[1722220591141,2.3977,3325.5,3324.8,2.40615]
[1722220591955,0.55,3325.4,3324.6,2.40626]
[1722220592201,1.030329,3325.4,3324.5,2.40636]
[1722220592482,1.030329,3325.4,3324.7,2.40617]
[1722220592697,1.030329,3325.4,3324.8,2.40612]
[1722220592845,0.3428029,3325.3,3324.8,2.40612]
[1722220593044,0.55,3325.2,3324.8,2.40612]
[1722220593282,0.55,3325.2,3324.6,2.40626]
[1722220594275,0.55,3325.2,3323.9,10.42994482]
[1722220594276,0.55,3325.2,3324.7,2.40622]
[1722220594642,0.55,3325.2,3324.3,2.4065]
[1722220594852,0.32986529,3325.1,3324.2,2.40659]
[1722220595083,0.55,3325.0,3324.0,3.0]
[1722220595288,0.55,3325.2,3324.3,2.40651]
[1722220595488,0.55,3325.2,3324.4,2.4064]
[1722220595685,0.55,3325.2,3324.1,2.40665]
[1722220595686,2.95587,3325.2,3324.2,2.40656]
[1722220595869,0.32986729,3325.1,3324.2,2.40656]
[1722220596079,0.32986729,3325.1,3323.9,3.0]
[1722220596080,0.55,3325.0,3323.9,3.0]
[1722220596247,0.55,3325.0,3324.5,2.40631]
[1722220596650,0.55,3325.0,3324.3,2.40646]
[1722220596651,0.55,3325.2,3324.3,2.40646]
[1722220596962,2.73586029,3325.1,3324.1,2.40662]
[1722220597145,0.55,3325.0,3324.1,2.40662]
[1722220597350,0.55,3325.0,3324.2,2.40656]
[1722220597595,0.32858603,3324.9,3324.2,2.40656]
[1722220597887,0.55,3324.8,3324.3,2.40651]
[1722220598188,0.55,3324.8,3324.1,2.40662]
[1722220598387,0.55,3325.0,3324.0,2.40667]
[1722220598684,0.82358003,3325.0,3324.3,2.40651]
[1722220598886,0.55,3325.0,3324.3,2.40651]
[1722220599801,0.55,3325.0,3324.4,2.40643]
[1722220600665,0.32986029,3325.1,3324.7,2.40622]
[1722220600868,0.3428029,3325.3,3324.5,2.40636]
[1722220601081,0.3428029,3325.3,3324.7,2.40621]
[1722220601453,0.3428029,3325.3,3324.8,2.40613]
[1722220601653,0.3428029,3325.3,3324.6,2.40624]
[1722220602296,0.55,3325.2,3324.6,2.40624]
[1722220603348,0.55,3325.2,3324.3,2.4065]
[1722220603581,0.55,3325.2,3324.6,2.4063]
[1722220604275,0.55,3325.2,3324.3,2.40651]
[1722220604476,0.55,3325.2,3324.0,3.0]
[1722220604477,2.95588,3325.2,3324.0,2.40671]
[1722220604803,0.32986829,3325.1,3324.3,2.40651]
[1722220605295,0.55,3325.0,3324.3,2.40651]
[1722220605495,0.55,3325.0,3324.4,2.40644]
[1722220606251,0.55,3325.0,3324.2,2.40654]
[1722220606453,0.55,3325.0,3324.3,2.40647]
[1722220607188,0.32858083,3324.9,3324.1,2.40661]
[1722220607407,0.55,3324.8,3324.1,2.40661]
[1722220607851,0.55,3324.8,3324.2,2.40658]
[1722220608047,0.55,3324.8,3324.4,2.4064]
[1722220608291,0.55,3325.0,3324.5,2.40632]
[1722220608598,0.88298683,3325.0,3324.3,2.40649]
[1722220609155,3.28901683,3325.0,3324.1,2.40664]
[1722220609356,2.95603,3325.0,3324.1,2.40664]
[1722220609592,0.55,3325.0,3323.7,3.0]
[1722220609751,0.55,3325.0,3323.6,2.40702]
[1722220609959,0.32858783,3324.9,3324.2,2.40652]
[1722220610155,0.55,3324.8,3324.3,2.40646]
[1722220610470,0.55,3324.8,3324.4,2.40643]
[1722220610798,0.55,3325.0,3324.2,2.40657]
[1722220611672,2.95603,3325.0,3324.2,2.40657]
[1722220611853,0.56918383,3324.9,3324.2,2.40657]
[1722220612055,2.40631,3324.6,3323.5,2.4071]
[1722220612355,2.40631,3324.6,3323.3,2.40719]
[1722220612356,2.40646,3324.4,3323.3,2.40719]
[1722220612555,2.95641,3324.5,3323.3,2.40719]
[1722220612752,2.2571,3324.6,3323.6,2.40698]
[1722220612753,0.521351,3324.4,3323.6,2.40698]
[1722220612952,0.55,3324.3,3323.6,2.40698]
[1722220613366,2.40649,3324.4,3323.5,2.40708]
[1722220613643,0.55,3324.5,3323.5,2.40708]
[1722220613644,2.95652,3324.3,3323.5,2.40708]
[1722220613942,0.55,3324.5,3323.5,2.40708]
[1722220614239,0.55,3324.5,3323.5,2.40709]
[1722220614240,2.40652,3324.3,3323.5,2.40709]
[1722220614741,0.55,3324.2,3323.5,2.40709]
[1722220615606,0.55,3324.2,3323.4,2.40716]
[1722220615922,0.55,3324.2,3323.6,2.40698]
[1722220616091,0.55,3324.3,3323.7,2.40695]
[1722220616439,0.55,3324.3,3323.8,2.40688]
[1722220616644,0.55,3324.5,3323.8,2.40688]
[1722220616853,1.016334,3324.5,3323.6,2.40701]
[1722220616993,1.016334,3324.5,3323.8,2.40686]
[1722220617503,1.016334,3324.5,3323.9,2.40681]
[1722220618589,1.016334,3324.5,3323.7,2.40694]
[1722220618590,0.55,3324.5,3324.0,2.40673]
[1722220618789,2.40638,3324.5,3323.6,2.407]
[1722220619030,0.55,3324.4,3323.7,2.40693]
[1722220619230,0.55,3324.4,3323.8,2.40687]
[1722220619441,2.4063,3324.7,3323.8,2.40687]
[1722220619442,0.55,3324.6,3323.8,2.40687]
[1722220619622,0.29563,3324.5,3323.7,2.40693]
[1722220619941,0.29563,3324.5,3323.5,2.40706]
[1722220619942,2.95651,3324.4,3323.5,2.40706]
[1722220620093,2.40653,3324.3,3323.5,2.40706]
[1722220620299,0.55,3324.2,3323.5,2.40706]
[1722220621228,2.95659,3324.2,3323.3,2.40718]
[1722220621432,0.536312,3324.1,3323.3,2.40724]
[1722220621597,0.55,3324.0,3323.3,2.40724]
[1722220622737,3.553,3323.4,3322.8,5.69740482]
[1722220622936,3.553,3323.4,3322.0,2.40812]
[1722220623244,3.553,3322.9,3321.8,2.40826]
[1722220623394,3.553,3322.9,3321.3,2.2947]
[1722220623395,2.40761,3322.8,3321.5,2.40851]
[1722220623591,2.40761,3322.8,3321.3,2.2947]
[1722220623592,2.40771,3322.7,3321.4,2.40855]
[1722220623794,2.40776,3322.6,3321.4,2.40855]
[1722220624035,0.55,3322.5,3321.5,2.40851]
[1722220624241,2.95783,3322.5,3321.5,2.40851]
[1722220624402,2.95783,3322.5,3321.6,2.40845]
[1722220624823,2.95783,3322.5,3321.7,0.240845]
[1722220626022,0.55,3322.5,3321.7,0.240845]
[1722220626200,2.40737,3323.2,3321.7,0.240845]
[1722220626201,2.40718,3323.4,3321.8,0.06020114]
[1722220626559,2.40684,3323.9,3322.6,2.40774]
[1722220626849,2.40694,3323.8,3322.7,0.240774]
[1722220627025,3.553,3324.6,3322.7,0.240774]
[1722220627026,5.95931,3324.6,3323.4,2.40711]
[1722220627240,5.95931,3324.6,3323.4,0.240711]
[1722220627241,2.40658,3324.3,3323.4,0.240711]
[1722220627415,2.40658,3324.3,3322.8,2.43457883]
[1722220627416,2.40682,3323.9,3322.5,2.40776]
[1722220627597,3.553,3324.1,3322.6,3.0]
[1722220627598,2.4069,3323.8,3322.6,3.0]
[1722220627797,3.553,3324.1,3323.2,2.40725]
[1722220628026,4.7339,3324.8,3322.4,3.06017829]
[1722220628027,2.40659,3324.3,3323.3,2.40722]
[1722220628226,2.647249,3324.2,3323.3,2.40722]
[1722220628394,2.40659,3324.2,3323.3,2.40722]
[1722220628830,2.40657,3324.3,3323.3,2.40722]
[1722220629152,2.40657,3324.3,3323.0,2.40745]
[1722220629458,3.0,3324.4,3322.7,0.240774]
[1722220629459,2.40709,3323.6,3322.7,0.240774]
[1722220629598,2.40709,3323.6,3321.7,0.240845]
[1722220629599,2.40696,3323.7,3322.6,5.69740482]
[1722220630048,2.40659,3324.2,3322.6,0.06017938]
[1722220630208,5.8636,3324.6,3323.3,2.40721]
[1722220630209,2.40655,3324.3,3323.3,2.40721]
[1722220630404,8.2699,3324.6,3323.4,0.240721]
[1722220630405,3.0,3324.5,3323.4,0.240721]
[1722220630606,3.0,3324.5,3322.3,5.3744]
[1722220630607,2.40683,3323.9,3322.9,5.69740482]
[1722220630844,2.40659,3324.2,3323.2,2.40729]
[1722220631197,3.0,3324.3,3322.9,5.69740482]
[1722220631398,2.40702,3323.7,3322.9,5.69740482]
[1722220631710,2.40702,3323.7,3322.8,2.4076]
[1722220631912,2.40702,3323.7,3322.9,0.24076]
[1722220632154,3.0,3324.3,3322.9,0.24076]
[1722220632155,2.4071,3323.5,3322.9,0.24076]
[1722220632370,2.40701,3323.7,3322.7,5.40766]
[1722220632542,0.55,3323.6,3322.7,2.40766]
[1722220632731,2.40688,3323.8,3322.7,2.40766]
[1722220632732,0.55,3323.7,3322.7,2.40766]
[1722220632928,2.95697,3323.7,3322.5,2.40781]
[1722220633227,2.40709,3323.6,3322.6,0.240781]
[1722220633447,0.55,3323.5,3322.6,0.240781]
[1722220633628,2.40726,3323.3,3322.4,2.40784]
[1722220634157,3.285997,3323.7,3322.2,8.10538482]
[1722220634158,2.40741,3323.1,3322.2,8.10538482]
[1722220634325,0.55,3323.2,3322.2,8.10538482]
[1722220634532,0.55,3323.2,3322.4,2.40783]
[1722220635115,0.55,3323.2,3322.5,2.40782]
[1722220635969,0.55,3323.2,3322.6,2.40774]
[1722220636268,2.40711,3323.5,3322.6,2.40774]
[1722220636269,0.55,3323.3,3322.6,2.40774]
[1722220636416,0.55,3323.4,3322.8,2.40759]
[1722220636619,0.55,3323.5,3322.9,0.240759]
[1722220636839,0.55,3323.5,3322.5,2.40778]
[1722220637323,0.55,3323.5,3322.7,2.40762]
[1722220637863,2.40635,3324.6,3323.6,2.40699]
[1722220638071,3.10648467,3326.1,3324.1,2.40661]
[1722220638072,2.72085891,3325.1,3324.1,2.40661]
[1722220638235,2.72085891,3325.1,3324.2,2.40659]
[1722220638436,2.40594,3325.1,3324.2,2.40659]
[1722220638682,2.40603,3325.0,3324.0,5.40668]
[1722220638875,2.40603,3325.0,3324.0,2.40668]
[1722220639190,2.3977,3325.4,3324.1,0.481343]
[1722220639336,2.406,3325.1,3324.1,0.481343]
[1722220639681,2.40615,3324.9,3323.9,5.4068]
[1722220640163,2.40617,3324.8,3323.9,2.4068]
[1722220640332,2.40617,3324.8,3323.8,3.0]
[1722220640539,0.55,3324.7,3323.9,2.40674]
[1722220640715,2.95609,3324.9,3324.0,0.78136]
[1722220640920,2.40616,3324.8,3324.0,0.78136]
[1722220641122,2.40642,3324.5,3323.7,0.240699]
[1722220641363,0.55,3324.7,3323.9,2.40676]
[1722220641581,0.55,3324.7,3323.7,0.240699]
[1722220641878,0.55,3324.9,3323.7,0.240699]
[1722220642056,2.40594,3325.1,3323.4,3.0]
[1722220642238,2.40594,3325.1,3324.0,2.40667]
[1722220642239,2.95607,3325.0,3324.0,2.40667]
[1722220642567,2.95603,3325.0,3324.1,2.40666]
[1722220642720,2.40609,3324.9,3323.3,3.0]
[1722220642919,0.55,3324.8,3323.6,2.40697]
[1722220643167,2.40581,3325.3,3323.7,2.4791]
[1722220643484,2.3977,3325.4,3323.7,2.4791]
[1722220643485,5.3977,3325.4,3324.5,2.40637]
[1722220643629,2.40552,3325.7,3324.8,2.40614]
[1722220643961,0.240552,3325.6,3324.8,2.40614]
[1722220644320,2.2632,3325.9,3324.9,0.0601502]
[1722220644643,2.2632,3326.4,3325.0,2.40601]
[1722220644958,2.40536,3325.9,3325.0,2.40601]
[1722220645364,2.40525,3326.1,3325.2,2.4058]
[1722220645524,2.40525,3326.1,3325.3,2.40579]
[1722220645721,2.645775,3326.1,3325.0,2.406]
[1722220645958,2.645775,3326.1,3324.9,2.40605]
[1722220645959,2.40536,3325.9,3324.9,2.40605]
[1722220646260,2.645735,3326.1,3325.2,2.40585]
[1722220646569,2.645735,3326.1,3324.6,8.17650482]
[1722220646570,2.40534,3326.0,3325.1,2.40593]
[1722220646735,0.55,3325.9,3325.2,2.40585]
[1722220646936,0.55,3325.9,3325.3,2.40578]
[1722220647124,0.55,3325.9,3325.1,2.40589]
[1722220647321,0.55,3325.9,3325.2,2.40584]
[1722220647528,2.95536,3325.9,3325.0,2.406]
[1722220647742,2.95536,3325.9,3325.0,2.887213]
[1722220649186,0.55,3325.9,3325.1,2.40587]
[1722220649471,0.55,3325.9,3325.2,2.40586]
[1722220649660,0.55,3326.0,3325.3,2.40579]
[1722220650486,0.55,3326.0,3325.1,0.06014192]
[1722220650629,0.55,3326.0,3325.2,0.29473649]
[1722220651077,0.55,3326.0,3325.4,2.40572]
[1722220651316,2.2632,3326.4,3325.5,0.06013674]
[1722220651452,2.71976699,3326.6,3325.7,2.40548]